[Event "Live Chess"]
[Site "Chess.com"]
[Date "2023.05.21"]
[Round "-"]
[White "nigelst"]
[Black "MartinWalker4"]
[Result "0-1"]
[WhiteElo "1702"]
[BlackElo "2073"]
[TimeControl "300"]
[EndTime "6:45:39 PDT"]
[Termination "MartinWalker4 won by resignation"]

1. e4 {[%clk 0:04:59.1]} 1... Nf6 {[%clk 0:04:57.8]} 2. e5 {[%clk 0:04:57.5]}
2... Nd5 {[%clk 0:04:56.5]} 3. d4 {[%clk 0:04:56.8]} 3... d6 {[%clk 0:04:55]} 4.
exd6 {[%clk 0:04:56]} 4... cxd6 {[%clk 0:04:53.3]} 5. c4 {[%clk 0:04:52]} 5...
Nb6 {[%clk 0:04:51.5]} 6. Nc3 {[%clk 0:04:50.2]} 6... g6 {[%clk 0:04:49.9]} 7.
Bd3 {[%clk 0:04:49.1]} 7... Bg7 {[%clk 0:04:48]} 8. Nge2 {[%clk 0:04:47.9]} 8...
Nc6 {[%clk 0:04:44.8]} 9. d5 {[%clk 0:04:43.7]} 9... Ne5 {[%clk 0:04:41.5]} 10.
b3 {[%clk 0:04:31.4]} 10... Nxd3+ {[%clk 0:04:36.2]} 11. Qxd3 {[%clk 0:04:29.1]}
11... Bf5 {[%clk 0:04:34.9]} 12. Qd2 {[%clk 0:04:24.4]} 12... O-O {[%clk
0:04:33.4]} 13. Bb2 {[%clk 0:04:22.8]} 13... e6 {[%clk 0:04:27.3]} 14. dxe6
{[%clk 0:04:11.4]} 14... fxe6 {[%clk 0:04:25.5]} 15. O-O {[%clk 0:04:09]} 15...
d5 {[%clk 0:04:13.4]} 16. cxd5 {[%clk 0:04:05.2]} 16... Nxd5 {[%clk 0:04:08.6]}
17. Nxd5 {[%clk 0:04:03.9]} 17... Qxd5 {[%clk 0:04:06.5]} 18. Qxd5 {[%clk
0:04:02.5]} 18... exd5 {[%clk 0:04:04.8]} 19. Bxg7 {[%clk 0:04:00.9]} 19... Kxg7
{[%clk 0:04:03.6]} 20. Nd4 {[%clk 0:03:56.9]} 20... Bd7 {[%clk 0:03:59.9]} 21.
Rfe1 {[%clk 0:03:55.6]} 21... Rfe8 {[%clk 0:03:58.2]} 22. Kf1 {[%clk 0:03:53.3]}
22... Kf7 {[%clk 0:03:54.9]} 23. Rxe8 {[%clk 0:03:50.5]} 23... Rxe8 {[%clk
0:03:48.3]} 24. Re1 {[%clk 0:03:48.8]} 24... Rxe1+ {[%clk 0:03:39.1]} 25. Kxe1
{[%clk 0:03:47.4]} 25... Ke7 {[%clk 0:03:38]} 26. Kd2 {[%clk 0:03:46.4]} 26...
Kd6 {[%clk 0:03:36.9]} 27. Ke3 {[%clk 0:03:41.8]} 27... a6 {[%clk 0:03:15.1]}
28. f4 {[%clk 0:03:40.4]} 28... Kc5 {[%clk 0:02:58.1]} 29. a3 {[%clk 0:03:35.6]}
29... b5 {[%clk 0:02:42.8]} 30. h3 {[%clk 0:03:33.1]} 30... h5 {[%clk
0:02:24.9]} 31. Nf3 {[%clk 0:03:28.8]} 31... a5 {[%clk 0:02:18.9]} 32. Kd3
{[%clk 0:03:25.7]} 32... Bf5+ {[%clk 0:02:16.4]} 33. Kc3 {[%clk 0:03:24.3]}
33... b4+ {[%clk 0:02:12.2]} 34. axb4+ {[%clk 0:03:21.8]} 34... axb4+ {[%clk
0:02:10.7]} 35. Kd2 {[%clk 0:03:16.5]} 35... Be4 {[%clk 0:02:03.7]} 36. Ne1
{[%clk 0:03:10.9]} 36... Kd4 {[%clk 0:02:00.4]} 37. g4 {[%clk 0:03:08.1]} 37...
hxg4 {[%clk 0:01:55.1]} 38. hxg4 {[%clk 0:03:07.1]} 38... Bb1 {[%clk 0:01:50.4]}
39. Kc1 {[%clk 0:02:34.2]} 39... Bd3 {[%clk 0:01:29.4]} 40. Kd2 {[%clk
0:02:25.1]} 40... Be4 {[%clk 0:01:27.8]} 41. Ke2 {[%clk 0:02:03.3]} 41... Kc3
{[%clk 0:01:25.7]} 42. Ke3 {[%clk 0:01:59.8]} 42... Kxb3 {[%clk 0:01:23.9]} 43.
Kd4 {[%clk 0:01:58.9]} 43... Ka2 {[%clk 0:01:21.9]} 44. f5 {[%clk 0:01:56.2]}
44... gxf5 {[%clk 0:01:19.5]} 45. gxf5 {[%clk 0:01:54]} 45... b3 {[%clk
0:01:10.1]} 46. f6 {[%clk 0:01:49]} 46... Bg6 {[%clk 0:01:08.6]} 47. Nd3 {[%clk
0:01:36.3]} 47... Bf7 {[%clk 0:00:56.5]} 48. Kc3 {[%clk 0:01:18.1]} 48... Ka3
{[%clk 0:00:47.3]} 49. Kd4 {[%clk 0:00:53.3]} 49... b2 {[%clk 0:00:44.7]} 50.
Nxb2 {[%clk 0:00:52]} 50... Kxb2 {[%clk 0:00:43.6]} 51. Ke5 {[%clk 0:00:51]}
51... Kc3 {[%clk 0:00:42.3]} 52. Kd6 {[%clk 0:00:49.2]} 52... d4 {[%clk
0:00:41.2]} 53. Ke7 {[%clk 0:00:48.7]} 53... Bh5 {[%clk 0:00:40.1]} 0-1

[Event "Live Chess"]
[Site "Chess.com"]
[Date "2023.05.21"]
[Round "-"]
[White "mliszewski"]
[Black "Biranidun"]
[Result "0-1"]
[WhiteElo "1821"]
[BlackElo "2515"]
[TimeControl "300"]
[EndTime "6:45:46 PDT"]
[Termination "Biranidun won by resignation"]

1. d4 {[%clk 0:04:58.2]} 1... Nf6 {[%clk 0:04:58.8]} 2. Bg5 {[%clk 0:04:57.5]}
2... c5 {[%clk 0:04:57.5]} 3. d5 {[%clk 0:04:56.2]} 3... Ne4 {[%clk 0:04:54.7]}
4. h4 {[%clk 0:04:53.3]} 4... Qb6 {[%clk 0:04:53.1]} 5. Nc3 {[%clk 0:04:44.1]}
5... Nxg5 {[%clk 0:04:45.7]} 6. hxg5 {[%clk 0:04:43]} 6... Qxb2 {[%clk
0:04:45.3]} 7. Ne4 {[%clk 0:04:32.3]} 7... Qb4+ {[%clk 0:04:41.7]} 8. Nd2 {[%clk
0:04:29.2]} 8... g6 {[%clk 0:04:37.8]} 9. e3 {[%clk 0:04:25.2]} 9... Bg7 {[%clk
0:04:36.4]} 10. Rb1 {[%clk 0:04:23.9]} 10... Qa5 {[%clk 0:04:33.5]} 11. Nf3
{[%clk 0:04:20.1]} 11... d6 {[%clk 0:04:32.5]} 12. Bd3 {[%clk 0:04:18.5]} 12...
Qxa2 {[%clk 0:04:27.1]} 13. Bc4 {[%clk 0:04:06.6]} 13... Qa5 {[%clk 0:04:25.8]}
14. Rb5 {[%clk 0:04:00.2]} 14... Qc7 {[%clk 0:04:24.5]} 15. Qb1 {[%clk
0:03:55.4]} 15... a6 {[%clk 0:04:23.7]} 16. Rb3 {[%clk 0:03:54.1]} 16... b5
{[%clk 0:04:22.7]} 17. Bd3 {[%clk 0:03:53.7]} 17... c4 {[%clk 0:04:21.6]} 18.
Bxg6 {[%clk 0:03:44.8]} 18... hxg6 {[%clk 0:04:19.1]} 19. Rxh8+ {[%clk
0:03:43.2]} 19... Bxh8 {[%clk 0:04:19]} 20. Ra3 {[%clk 0:03:35.9]} 20... Bb7
{[%clk 0:04:18.1]} 21. e4 {[%clk 0:03:32.3]} 21... Nd7 {[%clk 0:04:17.3]} 22.
Nd4 {[%clk 0:03:27.9]} 22... Bxd4 {[%clk 0:04:15.6]} 0-1

[Event "Live Chess"]
[Site "Chess.com"]
[Date "2023.05.21"]
[Round "-"]
[White "diana21strabt"]
[Black "Long1968"]
[Result "1-0"]
[WhiteElo "1765"]
[BlackElo "958"]
[TimeControl "300"]
[EndTime "6:46:01 PDT"]
[Termination "diana21strabt won on time"]

1. e4 {[%clk 0:04:58.9]} 1... e6 {[%clk 0:04:57.5]} 2. d4 {[%clk 0:04:57.8]}
2... d5 {[%clk 0:04:56.3]} 3. Nc3 {[%clk 0:04:57]} 3... Bb4 {[%clk 0:04:52.9]}
4. Ne2 {[%clk 0:04:54.7]} 4... c5 {[%clk 0:04:44.5]} 5. dxc5 {[%clk 0:04:51.2]}
5... Bxc5 {[%clk 0:04:26.4]} 6. exd5 {[%clk 0:04:48.1]} 6... Qb6 {[%clk
0:04:11.8]} 7. Ne4 {[%clk 0:04:35.7]} 7... Bb4+ {[%clk 0:03:15.8]} 8. c3 {[%clk
0:04:32]} 8... exd5 {[%clk 0:03:07.7]} 9. Qxd5 {[%clk 0:04:28.1]} 9... Be6
{[%clk 0:03:02.5]} 10. Qe5 {[%clk 0:04:17.6]} 10... Nc6 {[%clk 0:02:33.3]} 11.
Qxg7 {[%clk 0:04:12.3]} 11... Kd7 {[%clk 0:01:58.4]} 12. Qxh8 {[%clk 0:03:59.9]}
12... Re8 {[%clk 0:01:48.6]} 13. cxb4 {[%clk 0:03:55.6]} 13... Qxb4+ {[%clk
0:01:39.9]} 14. Qc3 {[%clk 0:03:53.8]} 14... Bg4 {[%clk 0:00:58.5]} 15. Qxb4
{[%clk 0:03:46.4]} 15... Nxb4 {[%clk 0:00:54.5]} 16. Nc5+ {[%clk 0:03:40.7]}
16... Kc6 {[%clk 0:00:39.7]} 17. f3 {[%clk 0:03:37.1]} 17... Nc2+ {[%clk
0:00:17.3]} 18. Kf2 {[%clk 0:03:35.9]} 18... Nxa1 {[%clk 0:00:12.4]} 19. fxg4
{[%clk 0:03:33.8]} 19... Kxc5 {[%clk 0:00:08.7]} 20. Be3+ {[%clk 0:03:31.2]}
20... Kc6 {[%clk 0:00:05.8]} 21. g3 {[%clk 0:03:30]} 1-0

[Event "Live Chess"]
[Site "Chess.com"]
[Date "2023.05.21"]
[Round "-"]
[White "RichardABates"]
[Black "friarnator"]
[Result "0-1"]
[WhiteElo "2131"]
[BlackElo "2042"]
[TimeControl "300"]
[EndTime "6:46:06 PDT"]
[Termination "friarnator won on time"]

1. d4 {[%clk 0:04:58.9]} 1... Nf6 {[%clk 0:04:58.6]} 2. Nf3 {[%clk 0:04:57.3]}
2... e6 {[%clk 0:04:58]} 3. c4 {[%clk 0:04:55.8]} 3... d5 {[%clk 0:04:57.3]} 4.
g3 {[%clk 0:04:53.1]} 4... Be7 {[%clk 0:04:56.2]} 5. Bg2 {[%clk 0:04:50.3]} 5...
O-O {[%clk 0:04:55.3]} 6. O-O {[%clk 0:04:49]} 6... dxc4 {[%clk 0:04:54.7]} 7.
Qc2 {[%clk 0:04:44.6]} 7... Bd7 {[%clk 0:04:53]} 8. Ne5 {[%clk 0:04:41.9]} 8...
Bc6 {[%clk 0:04:52.2]} 9. Nxc6 {[%clk 0:04:40.5]} 9... Nxc6 {[%clk 0:04:51.5]}
10. e3 {[%clk 0:04:39.3]} 10... Nb4 {[%clk 0:04:38.7]} 11. Qxc4 {[%clk
0:04:34.6]} 11... c6 {[%clk 0:04:38]} 12. Bd2 {[%clk 0:04:23.2]} 12... a5 {[%clk
0:04:34.5]} 13. a3 {[%clk 0:04:18.2]} 13... Na6 {[%clk 0:04:27.6]} 14. Nc3
{[%clk 0:04:15]} 14... Nd5 {[%clk 0:04:22.7]} 15. Rfc1 {[%clk 0:04:02.7]} 15...
Bf6 {[%clk 0:04:06.2]} 16. Ne4 {[%clk 0:03:59.2]} 16... Be7 {[%clk 0:04:03]} 17.
Qe2 {[%clk 0:03:52.3]} 17... Nf6 {[%clk 0:03:50]} 18. Nxf6+ {[%clk 0:03:44.7]}
18... Bxf6 {[%clk 0:03:49.9]} 19. b4 {[%clk 0:03:42.6]} 19... axb4 {[%clk
0:03:47.6]} 20. axb4 {[%clk 0:03:40.7]} 20... Nc7 {[%clk 0:03:44.3]} 21. Ra5
{[%clk 0:03:16.6]} 21... Nd5 {[%clk 0:03:26.9]} 22. Rca1 {[%clk 0:03:08.1]}
22... Rxa5 {[%clk 0:03:23.4]} 23. Rxa5 {[%clk 0:02:59.1]} 23... Be7 {[%clk
0:02:58.3]} 24. b5 {[%clk 0:02:52]} 24... Qd7 {[%clk 0:02:27.6]} 25. bxc6 {[%clk
0:02:33.5]} 25... Qxc6 {[%clk 0:02:08]} 26. h4 {[%clk 0:02:30.9]} 26... Nc3
{[%clk 0:01:45.6]} 27. Qd3 {[%clk 0:02:22.6]} 27... Nd5 {[%clk 0:01:34.2]} 28.
Be4 {[%clk 0:02:17.9]} 28... h6 {[%clk 0:01:31.9]} 29. Qb3 {[%clk 0:02:10.8]}
29... Rd8 {[%clk 0:01:12]} 30. Rb5 {[%clk 0:02:09.4]} 30... Rd7 {[%clk
0:01:10.9]} 31. h5 {[%clk 0:02:01.7]} 31... Kf8 {[%clk 0:00:55]} 32. Qa4 {[%clk
0:01:42.6]} 32... Ke8 {[%clk 0:00:50.4]} 33. Qa8+ {[%clk 0:01:36]} 33... Bd8
{[%clk 0:00:49.7]} 34. Rc5 {[%clk 0:01:31.1]} 34... Qa6 {[%clk 0:00:41.6]} 35.
Qc8 {[%clk 0:01:22.2]} 35... Qd6 {[%clk 0:00:35.6]} 36. Ba5 {[%clk 0:01:12.8]}
36... Nb6 {[%clk 0:00:32.9]} 37. Bxb6 {[%clk 0:00:57.4]} 37... Qxb6 {[%clk
0:00:32.8]} 38. Bd3 {[%clk 0:00:47.5]} 38... Ke7 {[%clk 0:00:29.4]} 39. Qa8
{[%clk 0:00:28.8]} 39... Rc7 {[%clk 0:00:28.2]} 40. Rb5 {[%clk 0:00:26.1]} 40...
Qa6 {[%clk 0:00:24.3]} 41. Qb8 {[%clk 0:00:21.5]} 41... Qc6 {[%clk 0:00:21.9]}
42. Rc5 {[%clk 0:00:16.3]} 42... Qb6 {[%clk 0:00:18.4]} 43. Rb5 {[%clk 0:00:15]}
43... Qc6 {[%clk 0:00:14.8]} 44. Rb3 {[%clk 0:00:13.3]} 44... Rd7 {[%clk
0:00:12.2]} 45. Bb5 {[%clk 0:00:11.5]} 45... Qc7 {[%clk 0:00:11]} 46. Qa8 {[%clk
0:00:09.1]} 46... Rd6 {[%clk 0:00:09.7]} 47. Ba4 {[%clk 0:00:06.6]} 47... Rb6
{[%clk 0:00:09.2]} 48. Rd3 {[%clk 0:00:03.9]} 48... Rb1+ {[%clk 0:00:08]} 49.
Kg2 {[%clk 0:00:03]} 49... Ra1 {[%clk 0:00:06.7]} 50. Rb3 {[%clk 0:00:00.6]}
50... Qd7 {[%clk 0:00:03.6]} 0-1

[Event "Live Chess"]
[Site "Chess.com"]
[Date "2023.05.21"]
[Round "-"]
[White "Hacker_2009"]
[Black "Chesscoach_Golichenko"]
[Result "1/2-1/2"]
[WhiteElo "1925"]
[BlackElo "2622"]
[TimeControl "300"]
[EndTime "6:46:19 PDT"]
[Termination "Game drawn by repetition"]

1. d4 {[%clk 0:04:58.2]} 1... Nf6 {[%clk 0:04:56.3]} 2. Nf3 {[%clk 0:04:55.2]}
2... e6 {[%clk 0:04:50.1]} 3. c4 {[%clk 0:04:52.2]} 3... c5 {[%clk 0:04:46.4]}
4. e3 {[%clk 0:04:51.2]} 4... b6 {[%clk 0:04:44.2]} 5. Nc3 {[%clk 0:04:49.6]}
5... Bb7 {[%clk 0:04:40.1]} 6. Be2 {[%clk 0:04:46.7]} 6... d5 {[%clk 0:04:37.7]}
7. O-O {[%clk 0:04:40.1]} 7... Be7 {[%clk 0:04:30]} 8. b3 {[%clk 0:04:36.3]}
8... O-O {[%clk 0:04:24.3]} 9. Bb2 {[%clk 0:04:34.5]} 9... Nc6 {[%clk
0:04:17.6]} 10. cxd5 {[%clk 0:04:31.7]} 10... exd5 {[%clk 0:04:09]} 11. Rc1
{[%clk 0:04:28.7]} 11... Rc8 {[%clk 0:04:01]} 12. Na4 {[%clk 0:04:21.9]} 12...
Ne4 {[%clk 0:03:42.5]} 13. dxc5 {[%clk 0:04:09.1]} 13... Nxc5 {[%clk 0:03:29.3]}
14. Nxc5 {[%clk 0:04:06.9]} 14... bxc5 {[%clk 0:03:25.1]} 15. Bd3 {[%clk
0:03:58.2]} 15... Qb6 {[%clk 0:03:20.2]} 16. Qe2 {[%clk 0:03:52.7]} 16... Rfe8
{[%clk 0:03:15.8]} 17. Rfd1 {[%clk 0:03:45.1]} 17... h6 {[%clk 0:03:14.3]} 18.
Bb1 {[%clk 0:03:43]} 18... Bf8 {[%clk 0:03:12.7]} 19. Qc2 {[%clk 0:03:26.1]}
19... g6 {[%clk 0:03:00.3]} 20. Qc3 {[%clk 0:03:19.7]} 20... d4 {[%clk
0:02:54.3]} 21. exd4 {[%clk 0:03:11.5]} 21... Nxd4 {[%clk 0:02:42.9]} 22. Nxd4
{[%clk 0:03:08]} 22... cxd4 {[%clk 0:02:42]} 23. Qxd4 {[%clk 0:03:03.7]} 23...
Qxd4 {[%clk 0:02:38]} 24. Bxd4 {[%clk 0:03:00.4]} 24... Rxc1 {[%clk 0:02:27.2]}
25. Rxc1 {[%clk 0:02:58.7]} 25... Ba3 {[%clk 0:02:26.3]} 26. Rd1 {[%clk
0:02:31.3]} 26... Rd8 {[%clk 0:02:25]} 27. Bc2 {[%clk 0:02:20.9]} 27... Rc8
{[%clk 0:02:22.1]} 28. Bd3 {[%clk 0:02:16.3]} 28... Rd8 {[%clk 0:02:09.4]} 29.
Bc2 {[%clk 0:02:14.2]} 29... Rc8 {[%clk 0:02:06.4]} 30. Bd3 {[%clk 0:02:13.4]}
30... Rd8 {[%clk 0:02:04.9]} 31. Bc2 {[%clk 0:02:12.5]} 1/2-1/2

[Event "Live Chess"]
[Site "Chess.com"]
[Date "2023.05.21"]
[Round "-"]
[White "bedsdrout"]
[Black "Conradical12"]
[Result "1-0"]
[WhiteElo "1329"]
[BlackElo "1567"]
[TimeControl "300"]
[EndTime "6:46:28 PDT"]
[Termination "bedsdrout won by checkmate"]

1. Nc3 {[%clk 0:04:54.8]} 1... e5 {[%clk 0:04:59.2]} 2. e4 {[%clk 0:04:53]} 2...
Nc6 {[%clk 0:04:57.6]} 3. Bc4 {[%clk 0:04:50.7]} 3... Nf6 {[%clk 0:04:57.1]} 4.
a3 {[%clk 0:04:47.8]} 4... a5 {[%clk 0:04:53.1]} 5. d3 {[%clk 0:04:45]} 5... Bc5
{[%clk 0:04:51.1]} 6. h3 {[%clk 0:04:42.7]} 6... d6 {[%clk 0:04:49]} 7. Bd2
{[%clk 0:04:39.1]} 7... O-O {[%clk 0:04:44.5]} 8. Nf3 {[%clk 0:04:37]} 8... Nd4
{[%clk 0:04:28.7]} 9. Nxd4 {[%clk 0:04:27.4]} 9... Bxd4 {[%clk 0:04:26.3]} 10.
O-O {[%clk 0:04:21.8]} 10... Be6 {[%clk 0:04:19.1]} 11. Bxe6 {[%clk 0:04:18.6]}
11... fxe6 {[%clk 0:04:17.5]} 12. Nb5 {[%clk 0:04:15.4]} 12... c6 {[%clk
0:04:12.4]} 13. Nxd4 {[%clk 0:04:08]} 13... exd4 {[%clk 0:04:10]} 14. c3 {[%clk
0:04:06.1]} 14... dxc3 {[%clk 0:04:08.2]} 15. bxc3 {[%clk 0:03:52.2]} 15... d5
{[%clk 0:04:02.6]} 16. e5 {[%clk 0:03:38.1]} 16... Nd7 {[%clk 0:04:00.9]} 17. f4
{[%clk 0:03:35.9]} 17... Qb6+ {[%clk 0:03:58.6]} 18. Kh2 {[%clk 0:03:25.6]}
18... Nc5 {[%clk 0:03:52.4]} 19. Be3 {[%clk 0:03:22.3]} 19... Rad8 {[%clk
0:03:48.7]} 20. Rb1 {[%clk 0:03:12.6]} 20... Qa7 {[%clk 0:03:42.8]} 21. Qg4
{[%clk 0:03:07]} 21... b6 {[%clk 0:03:26.6]} 22. d4 {[%clk 0:03:01.7]} 22... Ne4
{[%clk 0:03:24.3]} 23. Qxe6+ {[%clk 0:02:59.8]} 23... Kh8 {[%clk 0:03:21.8]} 24.
c4 {[%clk 0:02:58]} 24... Rfe8 {[%clk 0:03:00.8]} 25. Qxc6 {[%clk 0:02:55.6]}
25... Qe7 {[%clk 0:02:55.4]} 26. Ra1 {[%clk 0:02:45.3]} 26... Qh4 {[%clk
0:02:50.7]} 27. Rf3 {[%clk 0:02:34.1]} 27... g5 {[%clk 0:02:42.2]} 28. g3 {[%clk
0:02:29.8]} 28... Qh5 {[%clk 0:02:38.5]} 29. g4 {[%clk 0:02:27.4]} 29... Qh4
{[%clk 0:02:36.2]} 30. f5 {[%clk 0:02:25.4]} 30... h5 {[%clk 0:02:26.5]} 31.
Qh6+ {[%clk 0:02:17.8]} 31... Kg8 {[%clk 0:02:25.1]} 32. f6 {[%clk 0:02:15.7]}
32... hxg4 {[%clk 0:02:17.8]} 33. Qg7# {[%clk 0:01:56.4]} 1-0

[Event "Live Chess"]
[Site "Chess.com"]
[Date "2023.05.21"]
[Round "-"]
[White "elephantgerrald"]
[Black "TheSmoulderingMaster"]
[Result "0-1"]
[WhiteElo "677"]
[BlackElo "1660"]
[TimeControl "300"]
[EndTime "6:46:49 PDT"]
[Termination "TheSmoulderingMaster won by checkmate"]

1. e4 {[%clk 0:04:57.8]} 1... c5 {[%clk 0:04:58.4]} 2. d4 {[%clk 0:04:56.5]}
2... cxd4 {[%clk 0:04:57.2]} 3. Qxd4 {[%clk 0:04:54.8]} 3... Nc6 {[%clk
0:04:55.9]} 4. Qe3 {[%clk 0:04:50.9]} 4... e6 {[%clk 0:04:54.8]} 5. Nf3 {[%clk
0:04:49.1]} 5... Nf6 {[%clk 0:04:53.2]} 6. g3 {[%clk 0:04:40]} 6... b6 {[%clk
0:04:50.5]} 7. Bg2 {[%clk 0:04:21.3]} 7... Bc5 {[%clk 0:04:46.7]} 8. Qe2 {[%clk
0:04:10.8]} 8... O-O {[%clk 0:04:45.4]} 9. O-O {[%clk 0:04:09]} 9... d5 {[%clk
0:04:43.7]} 10. exd5 {[%clk 0:04:07.3]} 10... exd5 {[%clk 0:04:42.6]} 11. Nc3
{[%clk 0:03:59.2]} 11... Bg4 {[%clk 0:04:39.1]} 12. h3 {[%clk 0:03:52.4]} 12...
Bh5 {[%clk 0:04:37.6]} 13. Bg5 {[%clk 0:03:44]} 13... Nd4 {[%clk 0:04:34.6]} 14.
Bxf6 {[%clk 0:03:39.4]} 14... Qxf6 {[%clk 0:04:32.7]} 15. Nxd5 {[%clk
0:03:33.5]} 15... Nxe2+ {[%clk 0:04:30.3]} 16. Kh2 {[%clk 0:03:30.3]} 16... Qd6
{[%clk 0:04:24.3]} 17. Ng5 {[%clk 0:03:15]} 17... Bxf2 {[%clk 0:04:17.1]} 18.
Rxf2 {[%clk 0:03:12.8]} 18... Qxg3+ {[%clk 0:04:13.8]} 19. Kh1 {[%clk
0:03:08.1]} 19... Qxg5 {[%clk 0:04:11.6]} 20. Ne7+ {[%clk 0:03:01.9]} 20... Qxe7
{[%clk 0:04:10.1]} 21. Bxa8 {[%clk 0:03:00]} 21... Rxa8 {[%clk 0:04:07.5]} 22.
Raf1 {[%clk 0:02:56]} 22... Qe4+ {[%clk 0:04:05.2]} 23. Kh2 {[%clk 0:02:52.9]}
23... Qe5+ {[%clk 0:03:58.9]} 24. Kg2 {[%clk 0:02:41.2]} 24... Rd8 {[%clk
0:03:53.4]} 25. c3 {[%clk 0:02:33.2]} 25... Qg3+ {[%clk 0:03:49.5]} 26. Kh1
{[%clk 0:02:26.6]} 26... Qxh3+ {[%clk 0:03:48.6]} 27. Rh2 {[%clk 0:02:24.6]}
27... Qxf1# {[%clk 0:03:47.4]} 0-1

[Event "Live Chess"]
[Site "Chess.com"]
[Date "2023.05.21"]
[Round "-"]
[White "lateforthesky"]
[Black "GMHarry-youtube"]
[Result "1/2-1/2"]
[WhiteElo "2109"]
[BlackElo "2040"]
[TimeControl "300"]
[EndTime "6:46:56 PDT"]
[Termination "Game drawn - timeout vs insufficient material"]

1. e4 {[%clk 0:04:56.1]} 1... c5 {[%clk 0:04:57.8]} 2. Nf3 {[%clk 0:04:54.5]}
2... d6 {[%clk 0:04:57.4]} 3. Nc3 {[%clk 0:04:52.2]} 3... Nf6 {[%clk 0:04:56.6]}
4. e5 {[%clk 0:04:51.4]} 4... dxe5 {[%clk 0:04:54.4]} 5. Nxe5 {[%clk 0:04:50.5]}
5... Nbd7 {[%clk 0:04:53.1]} 6. d4 {[%clk 0:04:49.2]} 6... cxd4 {[%clk
0:04:48.1]} 7. Qxd4 {[%clk 0:04:46.5]} 7... Nxe5 {[%clk 0:04:46.3]} 8. Qxe5
{[%clk 0:04:45.6]} 8... e6 {[%clk 0:04:44.7]} 9. Bg5 {[%clk 0:04:42.1]} 9... Be7
{[%clk 0:04:43.2]} 10. Bb5+ {[%clk 0:04:38.3]} 10... Bd7 {[%clk 0:04:40.4]} 11.
O-O-O {[%clk 0:04:35.8]} 11... a6 {[%clk 0:04:29.3]} 12. Bxf6 {[%clk 0:03:20.8]}
12... Bxf6 {[%clk 0:04:13.8]} 13. Bxd7+ {[%clk 0:03:18.1]} 13... Qxd7 {[%clk
0:04:10.1]} 14. Rxd7 {[%clk 0:03:01.9]} 14... Bxe5 {[%clk 0:04:06.7]} 15. Rxb7
{[%clk 0:03:00.7]} 15... O-O {[%clk 0:04:01]} 16. Rd1 {[%clk 0:02:57.5]} 16...
Rab8 {[%clk 0:03:46.6]} 17. Rxb8 {[%clk 0:02:54.5]} 17... Rxb8 {[%clk
0:03:46.5]} 18. Rd3 {[%clk 0:02:46.4]} 18... Kf8 {[%clk 0:03:42.5]} 19. g3
{[%clk 0:02:44.7]} 19... Ke7 {[%clk 0:03:41.6]} 20. f4 {[%clk 0:02:43.2]} 20...
Bf6 {[%clk 0:03:37.9]} 21. b3 {[%clk 0:02:39]} 21... Rc8 {[%clk 0:03:36.1]} 22.
Ne4 {[%clk 0:02:37]} 22... a5 {[%clk 0:03:16.8]} 23. Nxf6 {[%clk 0:02:33.8]}
23... Kxf6 {[%clk 0:03:13.5]} 24. c4 {[%clk 0:02:32.8]} 24... a4 {[%clk
0:03:10.2]} 25. Kb2 {[%clk 0:02:31.9]} 25... axb3 {[%clk 0:03:09.2]} 26. axb3
{[%clk 0:02:30.4]} 26... Ke7 {[%clk 0:03:09.1]} 27. Kc3 {[%clk 0:02:28.8]} 27...
Ra8 {[%clk 0:03:07.2]} 28. c5 {[%clk 0:02:19.1]} 28... Ra1 {[%clk 0:03:03]} 29.
Rd2 {[%clk 0:02:11.4]} 29... Rc1+ {[%clk 0:02:57.8]} 30. Rc2 {[%clk 0:02:10.5]}
30... Rd1 {[%clk 0:02:57]} 31. b4 {[%clk 0:02:02.3]} 31... Rb1 {[%clk
0:02:41.9]} 32. Kc4 {[%clk 0:02:00.6]} 32... Kd7 {[%clk 0:02:41]} 33. b5 {[%clk
0:01:57.5]} 33... Kc7 {[%clk 0:02:38.7]} 34. h4 {[%clk 0:01:41.7]} 34... Rg1
{[%clk 0:02:31.7]} 35. Rc3 {[%clk 0:01:40.5]} 35... Rd1 {[%clk 0:02:28.8]} 36.
Rb3 {[%clk 0:01:14.4]} 36... Rc1+ {[%clk 0:02:24.6]} 37. Kb4 {[%clk 0:01:13.1]}
37... Rd1 {[%clk 0:02:22.1]} 38. Rc3 {[%clk 0:00:57.8]} 38... Rd4+ {[%clk
0:02:18.8]} 39. Rc4 {[%clk 0:00:55.6]} 39... Rd1 {[%clk 0:02:18.1]} 40. Rc3
{[%clk 0:00:51.2]} 40... Rd4+ {[%clk 0:02:15.8]} 41. Ka5 {[%clk 0:00:48.9]}
41... Rd1 {[%clk 0:02:11.5]} 42. Rb3 {[%clk 0:00:36.5]} 42... Ra1+ {[%clk
0:02:07.9]} 43. Kb4 {[%clk 0:00:35]} 43... Rd1 {[%clk 0:02:07.5]} 44. b6+ {[%clk
0:00:28.1]} 44... Kc6 {[%clk 0:02:04.9]} 45. Kc3 {[%clk 0:00:23.4]} 45... Rd5
{[%clk 0:02:02.1]} 46. b7 {[%clk 0:00:20.3]} 46... Rxc5+ {[%clk 0:02:01.3]} 47.
Kd3 {[%clk 0:00:18.8]} 47... Rd5+ {[%clk 0:02:00.4]} 48. Ke4 {[%clk 0:00:17.9]}
48... f5+ {[%clk 0:01:53.4]} 49. Ke3 {[%clk 0:00:16.3]} 49... Rd8 {[%clk
0:01:50.7]} 50. b8=Q {[%clk 0:00:15.4]} 50... Rxb8 {[%clk 0:01:49.7]} 51. Rxb8
{[%clk 0:00:14.9]} 51... Kd7 {[%clk 0:01:48.4]} 52. Rg8 {[%clk 0:00:13.8]} 52...
g6 {[%clk 0:01:42.9]} 53. Rg7+ {[%clk 0:00:13.1]} 53... Ke8 {[%clk 0:01:42.4]}
54. Rxh7 {[%clk 0:00:12.9]} 54... Kf8 {[%clk 0:01:42]} 55. Kd4 {[%clk
0:00:11.5]} 55... Kg8 {[%clk 0:01:40.9]} 56. Re7 {[%clk 0:00:10.1]} 56... Kf8
{[%clk 0:01:40.2]} 57. Rxe6 {[%clk 0:00:09.3]} 57... Kf7 {[%clk 0:01:40.1]} 58.
Ke5 {[%clk 0:00:08.1]} 58... Kg7 {[%clk 0:01:38.9]} 59. Re7+ {[%clk 0:00:07.5]}
59... Kh6 {[%clk 0:01:37.7]} 60. Kf6 {[%clk 0:00:06.8]} 60... Kh5 {[%clk
0:01:34.8]} 61. Rg7 {[%clk 0:00:05]} 61... Kg4 {[%clk 0:01:27.5]} 62. Rxg6+
{[%clk 0:00:04.6]} 62... Kf3 {[%clk 0:01:27]} 63. Kxf5 {[%clk 0:00:03.9]} 63...
Kg2 {[%clk 0:01:26.3]} 64. h5 {[%clk 0:00:03.6]} 64... Kh3 {[%clk 0:01:26.2]}
65. h6 {[%clk 0:00:03.2]} 65... Kg2 {[%clk 0:01:26.1]} 66. h7 {[%clk 0:00:03]}
66... Kf2 {[%clk 0:01:26]} 67. h8=Q {[%clk 0:00:02.8]} 67... Ke3 {[%clk
0:01:25.9]} 68. Qh3 {[%clk 0:00:02.2]} 68... Kd4 {[%clk 0:01:25.1]} 69. g4
{[%clk 0:00:01.8]} 69... Kc5 {[%clk 0:01:24.3]} 70. Rc6+ {[%clk 0:00:00.4]}
70... Kxc6 {[%clk 0:01:23.4]} 1/2-1/2